[Event "TUR-ch U13-18 Open 2023"]
[Site "Antalya"]
[Date "2023.01.24"]
[Round "4"]
[White "Surucu, Efe Mustafa"]
[Black "Cakmak, Kursat Kagan"]
[Result "1/2-1/2"]
[ECO "B07"]
[WhiteElo "1770"]
[BlackElo "1510"]
[Annotator "NA RC COMBH"]
[PlyCount "96"]
[EventDate "2023.01.17"]
[EventType "swiss"]
[EventCountry "TUR"]
[SourceTitle "playchess.com"]
[Source "ChessBase"]
[SourceQuality "1"]
[TimeControl "5400+30"]

1. e4 {[%emt 0:01:00]} d6 {[%emt 0:01:00]} 2. d4 {[%emt 0:00:30]} Nf6 {[%emt 0:00:30]} 3. Nc3 {[%emt 0:00:00]} e5 {[%emt 0:00:30]} 4. dxe5 {[%emt 0:02:00]} dxe5 {[%emt 0:00:30]} 5. Qxd8+ {[%emt 0:00:30]} Kxd8 {[%emt 0:00:30]} 6. Bg5 {[%emt 0:00:30]} Nbd7 {[%emt 0:00:00]} 7. O-O-O {[%emt 0:00:00]} Bd6 {[%emt 0:01:00]} 8. Bc4 {[%emt 0:00:00]} Ke7 {[%emt 0:01:30]} 9. Nge2 {[%emt 0:00:30]} h6 {[%emt 0:01:30]} 10. Bh4 {[%emt 0:02:30]} Nb6 {[%emt 0:02:30]} 11. Bb3 {[%emt 0:01:30]} a5 {[%emt 0:03:30]} 12. a3 {[%emt 0:10:30]} Be6 {[%emt 0:03:30]} 13. Bxe6 {[%emt 0:01:30]} fxe6 {[%emt 0:00:30]} 14. Kb1 {[%emt 0:00:30]} Nbd7 {[%emt 0:05:30]} 15. Rd2 {[%emt 0:15:30]} Nc5 {[%emt 0:03:30]} 16. f3 {[%emt 0:03:30]} Rhd8 {[%emt 0:07:30]} 17. Nb5 {[%emt 0:12:30]} Rac8 {[%emt 0:10:30]} 18. Rhd1 {[%emt 0:08:30]} g5 {[%emt 0:04:30]} 19. Bf2 {[%emt 0:02:30]} Ncxe4 {[%emt 0:01:30]} 20. fxe4 {[%emt 0:00:30]} Nxe4 {[%emt 0:00:30]} 21. Nec3 {[%emt 0:00:30]} Nxd2+ {[%emt 0:00:30]} 22. Rxd2 {[%emt 0:00:30]} Kf7 {[%emt 0:01:30]} 23. Ne4 {[%emt 0:10:30]} Be7 {[%emt 0:00:30]} 24. Re2 {[%emt 0:00:00]} c6 {[%emt 0:02:30]} 25. Nbc3 {[%emt 0:02:00]} b5 {[%emt 0:01:30]} 26. Bb6 {[%emt 0:03:30]} Rd7 {[%emt 0:05:30]} 27. Bxa5 {[%emt 0:02:30]} Ra8 {[%emt 0:02:30]} 28. b4 {[%emt 0:01:03]} Kg6 {[%emt 0:06:30]} 29. Kb2 {[%emt 0:00:47]} h5 {[%emt 0:02:30]} 30. Bb6 {[%emt 0:00:50]} Rf8 {[%emt 0:00:30]} 31. Bc5 {[%emt 0:01:11]} Rf1 {[%emt 0:01:30]} 32. Ng3 {[%emt 0:01:04]} Rf7 {[%emt 0:01:30]} 33. Bxe7 {[%emt 0:00:30]} Rfxe7 {[%emt 0:00:00]} 34. Rxe5 {[%emt 0:01:15]} Rd2 {[%emt 0:00:00]} 35. Nce4 {[%emt 0:00:12]} Rd5 {[%emt 0:00:30]} 36. Rxd5 {[%emt 0:00:21]} exd5 {[%emt 0:01:30]} 37. Nc3 {[%emt 0:01:47]} d4 {[%emt 0:01:30]} 38. Nb1 {[%emt 0:01:40]} h4 {[%emt 0:02:30]} 39. Nf1 {[%emt 0:00:30]} Re2 {[%emt 0:00:30]} 40. g3 {[%emt 0:00:30]} Kf5 {[%emt 0:00:30]} 41. Nbd2 {[%emt 0:00:18]} Kg4 {[%emt 0:10:33]} 42. gxh4 {[%emt 0:05:00]} gxh4 {[%emt 0:00:39]} 43. c3 {[%emt 0:00:17]} d3 {[%emt 0:00:22]} 44. c4 {[%emt 0:00:59]} Re1 {[%emt 0:03:49]} 45. cxb5 {[%emt 0:04:14]} cxb5 {[%emt 0:00:30]} 46. Kc3 {[%emt 0:00:00]} Kf4 {[%emt 0:02:38]} 47. Kxd3 {[%emt 0:00:54]} Rc1 {[%emt 0:00:17]} 48. Ne3 {[%emt 0:00:29]} Ra1 {[%emt 0:00:41]} 1/2-1/2

[Event "TUR-ch U13-18 Open 2023"]
[Site "Antalya"]
[Date "2023.01.24"]
[Round "4"]
[White "Kara, Goktan Can"]
[Black "Yamakoglu, Mustafa Ege"]
[Result "1-0"]
[ECO "A35"]
[WhiteElo "1755"]
[BlackElo "1372"]
[Annotator "NA RC COMBH"]
[PlyCount "161"]
[EventDate "2023.01.17"]
[EventType "swiss"]
[EventCountry "TUR"]
[SourceTitle "playchess.com"]
[Source "ChessBase"]
[SourceQuality "1"]
[TimeControl "5400+30"]

1. e4 {[%emt 0:01:00]} c5 {[%emt 0:02:00]} 2. Nf3 {[%emt 0:00:00]} Nc6 {[%emt 0:00:30]} 3. d4 {[%emt 0:00:00]} cxd4 {[%emt 0:00:30]} 4. Nxd4 {[%emt 0:00:30]} g6 {[%emt 0:00:30]} 5. c4 {[%emt 0:02:30]} Bg7 {[%emt 0:03:30]} 6. Nxc6 {[%emt 0:01:30]} bxc6 {[%emt 0:00:30]} 7. Be2 {[%emt 0:00:30]} Nf6 {[%emt 0:02:30]} 8. Nc3 {[%emt 0:00:30]} O-O {[%emt 0:02:30]} 9. O-O {[%emt 0:02:30]} d6 {[%emt 0:04:30]} 10. Be3 {[%emt 0:02:30]} Qc7 {[%emt 0:04:30]} 11. Qd2 {[%emt 0:11:30]} Ng4 {[%emt 0:05:30]} 12. Bf4 {[%emt 0:01:30]} Ne5 {[%emt 0:07:30]} 13. b3 {[%emt 0:01:30]} Be6 {[%emt 0:04:30]} 14. Bh6 {[%emt 0:03:30]} a5 {[%emt 0:04:30]} 15. Bxg7 {[%emt 0:02:30]} Kxg7 {[%emt 0:02:30]} 16. f4 {[%emt 0:04:30]} Ng4 {[%emt 0:02:30]} 17. f5 {[%emt 0:05:30]} Qb6+ {[%emt 0:01:30]} 18. Kh1 {[%emt 0:00:00]} Nf2+ {[%emt 0:00:30]} 19. Rxf2 {[%emt 0:00:00]} Qxf2 {[%emt 0:00:00]} 20. Rf1 {[%emt 0:00:30]} Qc5 {[%emt 0:04:00]} 21. fxe6 {[%emt 0:01:30]} fxe6 {[%emt 0:00:30]} 22. Bf3 {[%emt 0:00:00]} e5 {[%emt 0:02:30]} 23. h3 {[%emt 0:02:00]} Rf6 {[%emt 0:02:30]} 24. Na4 {[%emt 0:02:30]} Qd4 {[%emt 0:01:30]} 25. Qc2 {[%emt 0:01:30]} Raf8 {[%emt 0:01:30]} 26. Rd1 {[%emt 0:03:30]} Qe3 {[%emt 0:00:30]} 27. Rd3 {[%emt 0:01:30]} Qe1+ {[%emt 0:00:30]} 28. Kh2 {[%emt 0:00:00]} h5 {[%emt 0:00:30]} 29. Qd2 {[%emt 0:01:00]} Qf1 {[%emt 0:03:30]} 30. Nc3 {[%emt 0:03:30]} h4 {[%emt 0:03:30]} 31. Qe2 {[%emt 0:00:30]} Qc1 {[%emt 0:02:30]} 32. Qe3 {[%emt 0:03:30]} Qb2 {[%emt 0:03:30]} 33. Qd2 {[%emt 0:01:30]} Qa3 {[%emt 0:02:30]} 34. Na4 {[%emt 0:03:30]} Rf4 {[%emt 0:03:30]} 35. Qc3 {[%emt 0:00:30]} Qxa2 {[%emt 0:00:30]} 36. Qb2 {[%emt 0:03:30]} Qxb2 {[%emt 0:00:30]} 37. Nxb2 {[%emt 0:00:30]} c5 {[%emt 0:00:00]} 38. Nd1 {[%emt 0:01:30]} Rb8 {[%emt 0:00:00]} 39. Ne3 {[%emt 0:00:30]} Rb7 {[%emt 0:00:30]} 40. Nd5 {[%emt 0:01:30]} Rf8 {[%emt 0:00:30]} 41. Kg1 {[%emt 0:01:30]} Rfb8 {[%emt 0:00:30]} 42. Bd1 {[%emt 0:00:30]} e6 {[%emt 0:00:30]} 43. Ne3 {[%emt 0:00:30]} Rb6 {[%emt 0:00:30]} 44. Nf1 {[%emt 0:00:30]} Kf6 {[%emt 0:01:30]} 45. Nd2 {[%emt 0:00:30]} Ke7 {[%emt 0:00:30]} 46. Kf2 {[%emt 0:01:30]} Rf8+ {[%emt 0:00:00]} 47. Ke3 {[%emt 0:00:30]} Rf4 {[%emt 0:00:00]} 48. Nf3 {[%emt 0:00:30]} Rb8 {[%emt 0:01:30]} 49. Rd2 {[%emt 0:01:30]} Rb4 {[%emt 0:00:30]} 50. Ra2 {[%emt 0:01:30]} Kf6 {[%emt 0:00:30]} 51. Rxa5 {[%emt 0:00:30]} Rb8 {[%emt 0:01:30]} 52. Ra7 {[%emt 0:00:30]} g5 {[%emt 0:00:30]} 53. Rd7 {[%emt 0:02:30]} Rb6 {[%emt 0:00:30]} 54. Ra7 {[%emt 0:02:30]} g4 {[%emt 0:00:30]} 55. hxg4 {[%emt 0:00:30]} Rxg4 {[%emt 0:00:30]} 56. Nxe5 {[%emt 0:00:30]} Rg3+ {[%emt 0:00:30]} 57. Nf3 {[%emt 0:00:30]} Rxg2 {[%emt 0:00:30]} 58. Nxh4 {[%emt 0:00:30]} Rg1 {[%emt 0:00:30]} 59. Bc2 {[%emt 0:06:30]} Rc1 {[%emt 0:00:30]} 60. Kd2 {[%emt 0:00:30]} Rh1 {[%emt 0:00:30]} 61. Nf3 {[%emt 0:00:30]} Rf1 {[%emt 0:00:30]} 62. Ke2 {[%emt 0:01:58]} Rc1 {[%emt 0:00:00]} 63. Ne1 {[%emt 0:02:08]} Rxc2+ {[%emt 0:01:00]} 64. Nxc2 {[%emt 0:00:00]} Rxb3 {[%emt 0:00:30]} 65. Ra3 {[%emt 0:00:23]} Rb1 {[%emt 0:01:30]} 66. Ne3 {[%emt 0:02:47]} Ke5 {[%emt 0:00:30]} 67. Kf3 {[%emt 0:01:12]} Rh1 {[%emt 0:00:00]} 68. Ng4+ {[%emt 0:00:48]} Kd4 {[%emt 0:00:00]} 69. Nf2 {[%emt 0:00:29]} Rf1 {[%emt 0:01:30]} 70. Rd3+ {[%emt 0:00:20]} Ke5 {[%emt 0:00:30]} 71. Rd2 {[%emt 0:01:23]} d5 {[%emt 0:02:30]} 72. cxd5 {[%emt 0:00:43]} Kd6 {[%emt 0:01:04]} 73. e5+ {[%emt 0:01:24]} Kd7 {[%emt 0:00:02]} 74. d6 {[%emt 0:00:28]} c4 {[%emt 0:00:53]} 75. Rc2 {[%emt 0:00:30]} Re1 {[%emt 0:00:30]} 76. Ng4 {[%emt 0:01:08]} Rf1+ {[%emt 0:00:01]} 77. Ke4 {[%emt 0:00:30]} Rg1 {[%emt 0:00:30]} 78. Nf6+ {[%emt 0:01:07]} Kd8 {[%emt 0:00:30]} 79. Ra2 {[%emt 0:01:28]} Kc8 {[%emt 0:00:30]} 80. d7+ {[%emt 0:00:30]} Kc7 {[%emt 0:00:30]} 81. Ra7+ {[%emt 0:00:14]} 1-0

[Event "TUR-ch U13-18 Open 2023"]
[Site "Antalya"]
[Date "2023.01.24"]
[Round "4"]
[White "Avsar, Gediz"]
[Black "Sevig, Mert Can"]
[Result "0-1"]
[ECO "B43"]
[WhiteElo "1748"]
[BlackElo "1738"]
[Annotator "NA RC COMBH"]
[PlyCount "88"]
[EventDate "2023.01.17"]
[EventType "swiss"]
[EventCountry "TUR"]
[SourceTitle "playchess.com"]
[Source "ChessBase"]
[SourceQuality "1"]
[TimeControl "5400+30"]

1. e4 {[%emt 0:01:00]} c5 {[%emt 0:01:00]} 2. Nf3 {[%emt 0:00:30]} e6 {[%emt 0:00:30]} 3. d4 {[%emt 0:00:30]} cxd4 {[%emt 0:00:30]} 4. Nxd4 {[%emt 0:00:30]} a6 {[%emt 0:00:30]} 5. Nc3 {[%emt 0:00:30]} Qc7 {[%emt 0:00:00]} 6. Bd3 {[%emt 0:00:30]} b5 {[%emt 0:00:00]} 7. O-O {[%emt 0:00:30]} Bb7 {[%emt 0:00:00]} 8. Re1 {[%emt 0:03:30]} Nf6 {[%emt 0:04:00]} 9. Bg5 {[%emt 0:09:30]} d6 {[%emt 0:01:30]} 10. a4 {[%emt 0:02:30]} b4 {[%emt 0:02:30]} 11. Na2 {[%emt 0:00:30]} Be7 {[%emt 0:12:30]} 12. Bd2 {[%emt 0:05:30]} Nbd7 {[%emt 0:08:30]} 13. Bxb4 {[%emt 0:07:30]} Nc5 {[%emt 0:01:30]} 14. Nc3 {[%emt 0:00:30]} O-O {[%emt 0:08:30]} 15. b3 {[%emt 0:17:30]} d5 {[%emt 0:18:30]} 16. e5 {[%emt 0:13:30]} Nxd3 {[%emt 0:00:30]} 17. Bxe7 {[%emt 0:00:30]} Nxe1 {[%emt 0:00:00]} 18. exf6 {[%emt 0:05:30]} Qxc3 {[%emt 0:00:00]} 19. Bxf8 {[%emt 0:01:30]} Rxf8 {[%emt 0:02:30]} 20. fxg7 {[%emt 0:01:30]} Rc8 {[%emt 0:00:00]} 21. Ne2 {[%emt 0:01:30]} Nf3+ {[%emt 0:00:00]} 22. gxf3 {[%emt 0:00:30]} Qxg7+ {[%emt 0:00:30]} 23. Ng3 {[%emt 0:01:30]} f5 {[%emt 0:09:30]} 24. f4 {[%emt 0:03:30]} Rxc2 {[%emt 0:01:30]} 25. Qxc2 {[%emt 0:01:30]} Qxa1+ {[%emt 0:00:30]} 26. Kg2 {[%emt 0:01:30]} d4+ {[%emt 0:01:30]} 27. Kh3 {[%emt 0:01:40]} Qc3 {[%emt 0:00:30]} 28. Qe2 {[%emt 0:03:22]} Qc6 {[%emt 0:01:30]} 29. Qe5 {[%emt 0:07:58]} Kf7 {[%emt 0:00:00]} 30. Qh8 {[%emt 0:01:47]} Qg2+ {[%emt 0:01:00]} 31. Kh4 {[%emt 0:00:30]} Qxh2+ {[%emt 0:00:30]} 32. Kg5 {[%emt 0:00:00]} h6+ {[%emt 0:00:30]} 33. Qxh6 {[%emt 0:00:31]} Qxh6+ {[%emt 0:00:30]} 34. Kxh6 {[%emt 0:00:30]} Bg2 {[%emt 0:00:30]} 35. Ne2 {[%emt 0:00:30]} d3 {[%emt 0:00:30]} 36. Nc3 {[%emt 0:00:30]} a5 {[%emt 0:00:30]} 37. Nb1 {[%emt 0:00:30]} Kf6 {[%emt 0:00:30]} 38. Nd2 {[%emt 0:00:30]} Bd5 {[%emt 0:00:30]} 39. Kh5 {[%emt 0:00:30]} e5 {[%emt 0:03:30]} 40. fxe5+ {[%emt 0:05:39]} Kxe5 {[%emt 0:00:30]} 41. Kg5 {[%emt 0:00:30]} Be6 {[%emt 0:00:30]} 42. f3 {[%emt 0:00:30]} Kd4 {[%emt 0:00:30]} 43. Kf4 {[%emt 0:00:30]} Kc3 {[%emt 0:00:30]} 44. Ke3 {[%emt 0:00:30]} f4+ {[%emt 0:00:00]} 0-1

[Event "TUR-ch U13-18 Open 2023"]
[Site "Antalya"]
[Date "2023.01.24"]
[Round "4"]
[White "Dolek, Gokalp Deniz"]
[Black "Tarhan, Adar"]
[Result "0-1"]
[ECO "C54"]
[WhiteElo "1740"]
[BlackElo "2321"]
[Annotator "TA"]
[PlyCount "63"]
[EventDate "2023.01.17"]
[EventType "swiss"]
[EventCountry "TUR"]
[SourceTitle "playchess.com"]
[Source "ChessBase"]
[SourceQuality "1"]
[TimeControl "5400+30"]

{[%evp 18,63,41,6,14,0,28,10,36,-23,-13,-37,-40,-86,-41,-50,-53,-79,-82,-98,-84,-79,-79,-106,-113,-136,-122,-140,-136,-129,-139,-125,-130,-189,-154,-172,-184,-176,-176,-232,-227,-497,-482,-847,-842,-795,-784,-760]} 1. e4 {[%emt 0:01:00]} e5 {[%emt 0:06:00]} 2. Nf3 {[%emt 0:00:30]} Nc6 {[%emt 0:00:30]} 3. Bc4 {[%emt 0:00:30]} Bc5 {[%emt 0:00:00]} 4. c3 {[%emt 0:00:00]} Nf6 {[%emt 0:00:00]} 5. d3 {[%emt 0:00:00]} d6 {[%emt 0:00:30]} 6. a4 {[%emt 0:00:00]} a6 {[%emt 0:01:30]} 7. h3 {[%emt 0:03:00]} Ba7 {[%emt 0:04:30]} 8. O-O {[%emt 0:02:30]} O-O {[%emt 0:02:30]} 9. Re1 {[%emt 0:03:30]} Ne7 {[%emt 0:02:30]} 10. Nbd2 {[%emt 0:01:30]} Ng6 {[%emt 0:00:30][%cal Oc8h3] C54: Giuoco Piano: 4 c3 Nf6, main lines with 5 d4 and 5 d3.} 11. Nf1 {[%emt 0:00:30] 11.Nf1 scores better than 11.d4.} (11. d4 {simplifies} c6 12. Bb3 exd4 13. cxd4 d5 14. exd5 Nxd5 15. Ne4) 11... Nh5 {[%emt 0:21:30]} 12. b4 {[%emt 0:00:30]} Ngf4 {[%emt 0:01:30][%cal Ob7b5] [#] The position is equal.} 13. Bxf4 $146 {[%emt 0:02:30]} (13. d4 $14) ({Predecessor:} 13. Be3 Be6 14. Bxa7 Rxa7 15. Ne3 Qf6 16. Kh2 Qh6 17. Bxe6 Qxe6 18. Ng1 Nf6 19. g3 {1-0 Fus,J (2363)-Miroshnichenko,P (2270) Krakow op-A 30th 2019 (5)}) 13... Nxf4 $11 {[%emt 0:04:30]} 14. Ra2 {[%emt 0:01:30]} Qf6 {[%emt 0:01:30] And now ...Qg6 would win.} 15. Ng3 {[%emt 0:11:30]} (15. Ne3 $15 {might be stronger.}) 15... Bd7 {[%emt 0:11:30]} 16. a5 {[%emt 0:05:30]} Rad8 {[%emt 0:03:30]} 17. d4 {[%emt 0:05:30] [#]} Be6 $1 {[%emt 0:01:30] Black continues to play with concentration.} 18. d5 {[%emt 0:04:30]} Bc8 {[%emt 0:00:30]} 19. Bf1 {[%emt 0:00:00]} h5 {[%emt 0:01:30]} 20. h4 {[%emt 0:16:00]} Bg4 {[%emt 0:00:30]} 21. Be2 {[%emt 0:00:30]} g6 {[%emt 0:06:30] Black is much more active.} 22. Nf1 {[%emt 0:05:30]} Nxe2+ {[%emt 0:02:30]} ({Stronger than} 22... Bxf3 23. Bxf3 Qxh4 24. g3 $15) 23. Qxe2 {[%emt 0:00:30]} Bxf3 {[%emt 0:00:30]} 24. Qxf3 {[%emt 0:00:30]} Qxh4 {[%emt 0:00:00]} 25. Ng3 {[%emt 0:03:30]} (25. Qd3 $17) 25... Qg5 {[%emt 0:01:00]} 26. Rb2 {[%emt 0:07:30]} h4 {[%emt 0:00:30]} 27. Nf1 {[%emt 0:02:30]} f5 {[%emt 0:00:30]} 28. b5 {[%emt 0:03:30]} (28. Qh3 $142) 28... axb5 $19 {[%emt 0:00:30]} 29. Ree2 {[%emt 0:00:39] [#]} (29. Qh3 {was worth a try.}) 29... fxe4 {[%emt 0:01:30] Black is clearly winning.} 30. Qxe4 {[%emt 0:00:21]} (30. Qh3 $142 Rf4 31. Ne3) 30... Rf4 {[%emt 0:00:30]} 31. Qd3 {[%emt 0:00:30]} Rdf8 {[%emt 0:00:30] White must now prevent ...Rf3.} 32. Qd2 {[%emt 0:06:23] Weighted Error Value: White=0.63/Black=0.07 (flawless)} 0-1

[Event "TUR-ch U13-18 Open 2023"]
[Site "Antalya"]
[Date "2023.01.24"]
[Round "4"]
[White "Kolat, Ata"]
[Black "Harmansa, Kagan"]
[Result "1-0"]
[ECO "D02"]
[WhiteElo "1732"]
[BlackElo "1519"]
[Annotator "NA RC COMBH"]
[PlyCount "75"]
[EventDate "2023.01.17"]
[EventType "swiss"]
[EventCountry "TUR"]
[SourceTitle "playchess.com"]
[Source "ChessBase"]
[SourceQuality "1"]
[TimeControl "5400+30"]

1. d4 {[%emt 0:01:00]} d5 {[%emt 0:01:00]} 2. Bf4 {[%emt 0:00:00]} c5 {[%emt 0:02:30]} 3. e3 {[%emt 0:00:00]} e6 {[%emt 0:01:30]} 4. c3 {[%emt 0:00:30]} Nc6 {[%emt 0:00:30]} 5. Nd2 {[%emt 0:00:00]} Nf6 {[%emt 0:01:30]} 6. Ngf3 {[%emt 0:00:00]} Be7 {[%emt 0:01:30]} 7. Bd3 {[%emt 0:00:30]} O-O {[%emt 0:01:30]} 8. Ne5 {[%emt 0:01:30]} Nxe5 {[%emt 0:02:30]} 9. dxe5 {[%emt 0:02:30]} Nd7 {[%emt 0:01:30]} 10. Qc2 {[%emt 0:03:30]} h6 {[%emt 0:05:30]} 11. c4 {[%emt 0:03:30]} dxc4 {[%emt 0:02:30]} 12. Nxc4 {[%emt 0:00:30]} b5 {[%emt 0:08:30]} 13. Be4 {[%emt 0:03:30]} Rb8 {[%emt 0:01:30]} 14. Nd6 {[%emt 0:01:30]} c4 {[%emt 0:09:30]} 15. O-O {[%emt 0:12:30]} Nc5 {[%emt 0:03:30]} 16. Bh7+ {[%emt 0:11:30]} Kh8 {[%emt 0:00:30]} 17. Rad1 {[%emt 0:00:00]} Bxd6 {[%emt 0:04:30]} 18. exd6 {[%emt 0:02:00]} Nd7 {[%emt 0:06:30]} 19. Be4 {[%emt 0:03:30]} g5 {[%emt 0:06:30]} 20. Qc3+ {[%emt 0:04:30]} Kg8 {[%emt 0:05:30]} 21. Be5 {[%emt 0:01:30]} b4 {[%emt 0:03:30]} 22. Qd4 {[%emt 0:01:30]} Qa5 {[%emt 0:07:30]} 23. f4 {[%emt 0:06:30]} f6 {[%emt 0:02:34]} 24. Qxc4 {[%emt 0:01:30]} Nc5 {[%emt 0:03:46]} 25. Qc2 {[%emt 0:18:30]} fxe5 {[%emt 0:16:32]} 26. Bh7+ {[%emt 0:00:30]} Kh8 {[%emt 0:00:30]} 27. Qg6 {[%emt 0:00:30]} Qd8 {[%emt 0:00:30]} 28. Qxh6 {[%emt 0:00:30]} Rb7 {[%emt 0:00:30]} 29. fxg5 {[%emt 0:08:03]} Rg7 {[%emt 0:00:23]} 30. Rxf8+ {[%emt 0:02:39]} Qxf8 {[%emt 0:00:01]} 31. Rf1 {[%emt 0:00:33]} Qd8 {[%emt 0:01:09]} 32. Bg6+ {[%emt 0:02:27]} Kg8 {[%emt 0:00:24]} 33. Bf7+ {[%emt 0:00:27]} Rxf7 {[%emt 0:00:25]} 34. Rxf7 {[%emt 0:00:00]} Kxf7 {[%emt 0:00:30]} 35. g6+ {[%emt 0:00:01]} Ke8 {[%emt 0:00:46]} 36. Qh8+ {[%emt 0:00:30]} Kd7 {[%emt 0:00:30]} 37. Qxd8+ {[%emt 0:00:00]} Kxd8 {[%emt 0:00:02]} 38. g7 {[%emt 0:00:00]} 1-0

[Event "TUR-ch U13-18 Open 2023"]
[Site "Antalya"]
[Date "2023.01.24"]
[Round "4"]
[White "Yilmaz, Kerem Tuna"]
[Black "Ergin, Sahin"]
[Result "1/2-1/2"]
[ECO "B92"]
[WhiteElo "1706"]
[BlackElo "1878"]
[Annotator "NA RC COMBH"]
[PlyCount "109"]
[EventDate "2023.01.17"]
[EventType "swiss"]
[EventCountry "TUR"]
[SourceTitle "playchess.com"]
[Source "ChessBase"]
[SourceQuality "1"]
[TimeControl "5400+30"]

1. e4 {[%emt 0:01:00]} c5 {[%emt 0:01:00]} 2. Nf3 {[%emt 0:00:00]} d6 {[%emt 0:01:30]} 3. d4 {[%emt 0:00:00]} cxd4 {[%emt 0:00:30]} 4. Nxd4 {[%emt 0:00:30]} Nf6 {[%emt 0:00:30]} 5. Nc3 {[%emt 0:00:00]} a6 {[%emt 0:00:00]} 6. Be2 {[%emt 0:02:00]} e5 {[%emt 0:00:00]} 7. Nb3 {[%emt 0:01:30]} h6 {[%emt 0:03:30]} 8. O-O {[%emt 0:08:30]} Be7 {[%emt 0:00:30]} 9. Be3 {[%emt 0:00:30]} O-O {[%emt 0:01:30]} 10. f4 {[%emt 0:04:30]} b5 {[%emt 0:12:30]} (10... Nbd7 $11) 11. a3 {[%emt 0:11:30]} (11. a4 $14 bxa4 12. Rxa4) 11... Qc7 {[%emt 0:14:30]} (11... Nbd7 $15) 12. Qe1 {[%emt 0:04:30]} ({Better is} 12. fxe5 $14 dxe5 13. a4) 12... Bb7 {[%emt 0:04:30]} 13. Bf3 {[%emt 0:03:30]} Nbd7 {[%emt 0:02:30]} 14. Rd1 {[%emt 0:10:30]} Rfe8 {[%emt 0:04:30]} 15. f5 {[%emt 0:07:30]} (15. Qg3 $11 {keeps the balance.}) 15... Nc5 {[%emt 0:05:30]} 16. Nxc5 {[%emt 0:07:30]} dxc5 {[%emt 0:00:30]} 17. Qg3 {[%emt 0:11:30]} Kh8 {[%emt 0:03:30]} 18. Rfe1 {[%emt 0:09:38]} Rad8 {[%emt 0:03:30]} 19. Bc1 {[%emt 0:01:08]} Rd4 {[%emt 0:08:30]} 20. Be3 {[%emt 0:03:27]} Rxd1 {[%emt 0:03:30]} 21. Rxd1 {[%emt 0:00:30]} b4 {[%emt 0:00:30]} 22. Nd5 {[%emt 0:00:08]} Bxd5 {[%emt 0:00:30]} 23. exd5 {[%emt 0:00:30]} Bd6 {[%emt 0:00:00]} 24. Qh4 {[%emt 0:00:00]} e4 {[%emt 0:03:00]} 25. Be2 {[%emt 0:00:00]} Be5 {[%emt 0:02:30]} 26. d6 {[%emt 0:00:16]} Bxd6 {[%emt 0:02:30]} 27. Bxh6 {[%emt 0:00:30]} Be5 {[%emt 0:00:30]} 28. Be3+ {[%emt 0:04:25]} Kg8 {[%emt 0:00:30]} 29. g4 {[%emt 0:00:30]} Rd8 {[%emt 0:00:30]} 30. Rxd8+ {[%emt 0:00:30]} Qxd8 {[%emt 0:00:30]} 31. Bxc5 {[%emt 0:00:30]} Bd4+ {[%emt 0:00:30]} 32. Bxd4 {[%emt 0:00:30]} Qxd4+ {[%emt 0:00:30]} 33. Kf1 {[%emt 0:00:30]} bxa3 {[%emt 0:00:30]} 34. bxa3 {[%emt 0:00:30]} Qa1+ {[%emt 0:00:30]} 35. Kg2 {[%emt 0:00:30]} Qxa3 {[%emt 0:00:30]} 36. g5 {[%emt 0:00:30]} Qe3 {[%emt 0:02:30]} 37. Kf1 {[%emt 0:04:39]} Qc1+ {[%emt 0:03:49]} 38. Kf2 {[%emt 0:00:50]} e3+ $11 {[%emt 0:08:15]} 39. Kf3 {[%emt 0:01:06]} Nd5 $1 {[%emt 0:01:01]} 40. Qc4 {[%emt 0:02:55]} (40. Bxa6 $2 {loses.} Qd1+ 41. Kg3 Qxc2 $19) 40... Qh1+ {[%emt 0:01:26]} 41. Kg3 {[%emt 0:00:30]} Qe1+ {[%emt 0:00:08]} 42. Kg4 {[%emt 0:00:27]} Qf2 {[%emt 0:03:10]} 43. Qc8+ {[%emt 0:01:01]} Kh7 {[%emt 0:00:24]} 44. g6+ $1 {[%emt 0:00:42]} fxg6 {[%emt 0:00:40]} 45. fxg6+ {[%emt 0:00:30]} Kxg6 {[%emt 0:00:30]} 46. Bd3+ {[%emt 0:00:30]} Kf6 {[%emt 0:00:30]} 47. Qf8+ {[%emt 0:00:30]} Ke5 {[%emt 0:00:30]} 48. Qe8+ {[%emt 0:00:30]} Kd6 {[%emt 0:00:30]} 49. Qd8+ {[%emt 0:00:18]} Ke5 {[%emt 0:00:51]} 50. Qe8+ {[%emt 0:00:09]} Kd4 {[%emt 0:00:40]} 51. Qa4+ {[%emt 0:00:13]} Kc5 {[%emt 0:00:35]} 52. Qa5+ {[%emt 0:00:18]} Kd4 {[%emt 0:01:18]} 53. Qa4+ {[%emt 0:00:09]} Ke5 {[%emt 0:01:35]} 54. Qe8+ {[%emt 0:00:12]} Kd6 {[%emt 0:01:18]} 55. Qd8+ {[%emt 0:00:20]} 1/2-1/2